Cogmind - Beta 13 @@@ ROGUE MODE // 2024.04.11 @ 08:14:11 Player: JTMusky Result: Destroyed by G-47 Trooper with Particle Gun Performance ------------- Evolutions (0) 0 Regions Visited (1) 200 Robots Destroyed (2) 10 Value Destroyed (81) 81 Prototype IDs (0) 0 Alien Tech Used (0) 0 Bonus (0) 0 TOTAL SCORE: 291 Bonus ------- None Cogmind --------- Core Integrity 0/250 Matter 256/300 Energy 21/100 System Corruption 0% Temperature Cool (9) Movement Rolling (80) Location -10/Materials Parts ------- > --- POWER (1) -------- (None) > --- PROPULSION (2) --- Wheel > --- UTILITY (2) ------ Heat Sink > --- WEAPON (2) ------- Small Laser > --- INVENTORY (5) ---- Aluminum Leg Wheel Peak State ------------ > --- POWER ------------ Light Ion Engine > --- PROPULSION ------- Aluminum Leg Aluminum Leg > --- UTILITY ---------- Heat Sink > --- WEAPON ----------- EM Pulse Gun Assault Rifle > --- INVENTORY -------- Aluminum Leg Wheel Wheel EM Pulse Gun Small Laser [Rating: 6] Favorites ----------- Power Light Ion Engine Engine Light Ion Engine Propulsion Aluminum Leg Leg Aluminum Leg Wheel Wheel Utility Heat Sink Device Heat Sink Weapon EM Pulse Gun Energy Gun EM Pulse Gun Ballistic Gun Assault Rifle Build | -11 -10 ------- Run | Yrd Mat Slots Evolved . | . . Power . | . . Propulsion . | . . Utility . | . . Weapon . | . . Parts Attached 14 | 11 3 Power 2 | 2 . Engine 2 | 2 . Core . | . . Reactor . | . . Propulsion 5 | 4 1 Treads . | . . Leg 4 | 4 . Wheel 1 | . 1 Hover . | . . Flight . | . . Utility 1 | 1 . Device 1 | 1 . Storage . | . . Processor . | . . Hackware . | . . Protection . | . . Artifact . | . . Weapon 6 | 4 2 Energy Gun 4 | 2 2 Energy Cannon . | . . Ballistic Gun 2 | 2 . Ballistic Cannon . | . . Launcher . | . . Special Weapon . | . . Impact Weapon . | . . Slashing Weapon . | . . Piercing Weapon . | . . Special Melee Weapon . | . . Unidentified Prototypes . | . . Parts Lost 6 | . 6 Power 1 | . 1 Propulsion 2 | . 2 Utility . | . . Weapon 3 | . 3 Highest Loss Streak 6 | . 6 To Critical Strikes . | . . Average Slot Usage (%) 68 | . 68 Engine 8 | . 8 Leg 21 | . 21 Wheel 1 | . 1 Device 14 | . 14 Energy Gun 14 | . 14 Ballistic Gun 8 | . 8 Naked Turns . | . . Heaviest Build 8 | 8 8 Greatest Support 20 | 20 20 Greatest Overweight (x) 1 | . 1 Average Overweight (x) . | . . Largest Inventory Capacity 5 | 5 5 Average Capacity 5 | 5 5 Most Carried 5 | 5 5 Average Carried 3 | 3 4 Final Capacity 5 | 5 5 Final Carried 5 | 5 2 Class Distribution -------------------- 100% | Mutant Dominant Class ---------------- Mutant | -10/Materials Resources | -11 -10 ----------- Run | Yrd Mat Matter Collected 296 | 296 . Remotely . | . . Salvage Created 99 | 45 54 Parts 4 | 4 . Haulers Intercepted . | . . Recyclers Shooed . | . . Parts Field Recycled . | . . Retrieved Matter . | . . Parts Self-Destructed . | . . Prevented . | . . Kills | -11 -10 ------- Run | Yrd Mat Combat Hostiles Destroyed 2 | 1 1 Guns 2 | 1 1 Classes Destroyed 1 | 1 . Grunt 2 | 1 1 Best Kill Streak 1 | 1 1 Combat Bots Only 1 | 1 1 Max Kills in Single Turn 1 | 1 1 Gunslinging . | . . Exploded . | . . Melee . | . . Uniques/NPCs Destroyed . | . . Combat | -11 -10 -------- Run | Yrd Mat Hostile Shots Fired 87 | 10 77 Missed 26 | 4 22 Damage Taken 787 | 68 719 Core 254 | . 254 Absorbed by Shields . | . . Core Remaining (%) 100 | 100 . Volleys Fired 18 | 8 10 Largest 2 | 1 2 Hottest 80 | 40 80 Shots Fired 19 | 8 11 Gun 19 | 8 11 Cannon . | . . Launcher . | . . Special . | . . Kinetic 10 | 7 3 Thermal 2 | . 2 Explosive . | . . Electromagnetic 7 | 1 6 Robot Hit Streak 6 | 6 6 Robot Miss Streak 3 | 1 3 Penetration Max . | . . Secondary Targets . | . . Shots Hit Robots 13 | 7 6 Core Hits 5 | 2 3 Critical Kills . | . . Critical Parts Destroyed . | . . Critical Strikes . | . . Melee Attacks . | . . Impact . | . . Slashing . | . . Piercing . | . . Sneak Attacks . | . . Combat Hostiles . | . . Follow-up Attacks . | . . Damage Inflicted 269 | 84 185 Guns 161 | 84 77 Cannons . | . . Explosions 108 | . 108 Melee . | . . Ramming . | . . Kinetic 108 | 71 37 Thermal 108 | . 108 Explosive . | . . Electromagnetic 53 | 13 40 Impact . | . . Slashing . | . . Piercing . | . . Highest Corruption . | . . Average Corruption . | . . Corruption Purged . | . . Corruption Blocked . | . . Overload Shots . | . . Overflow Damage . | . . Projectiles . | . . Explosions . | . . Melee . | . . Knockbacks . | . . Impact . | . . Kinetic . | . . Secondary . | . . Self-Inflicted Damage 19 | . 19 Shots 1 | . 1 Rammed . | . . Targets Rammed . | . . Kicked . | . . Crushed . | . . Highest Temperature 12 | . 12 Average Temperature 6 | . 6 Received Heat Transfer 429 | 36 393 Siege Activations . | . . Robots Corrupted . | . . Combat Hostiles . | . . Parts Fried . | . . Impact Corruptions . | . . Robots Melted . | . . Combat Hostiles . | . . Parts Melted . | . . Heat Transferred 100 | . 100 Parts Sabotaged . | . . Parts Stolen . | . . Parts Stripped . | . . Power Chain Reactions 1 | . 1 Alert | -11 -10 ------- Run | Yrd Mat Peak Influence 47 | 20 47 Initial 13 | . 13 Average 12 | 7 25 Maximum Alert Level . | . . Low Security (%) 100 | 100 100 Level 1 . | . . Level 2 . | . . Level 3 . | . . Level 4 . | . . Level 5 . | . . High Security . | . . Max Security . | . . Squads Dispatched . | . . Investigation . | . . Extermination . | . . Reinforcement . | . . Assault . | . . Garrison . | . . Intercept . | . . Searches Triggered . | . . Construction Impeded . | . . Haulers Reinforced . | . . Active Scanning Responses . | . . Cargo Convoy Interrupts . | . . Stealth | -11 -10 --------- Run | Yrd Mat Distress Signals . | . . Communications Jammed . | . . Distress Signals . | . . Times Spotted 13 | 1 12 Peak Tracking Total 10 | 1 10 Tactical Retreats . | . . Traps | -11 -10 ------- Run | Yrd Mat Traps Triggered . | . . Indirectly . | . . Trap Hack Attempts . | . . Triggered . | . . Disarmed . | . . Reprogrammed . | . . Reused . | . . Traps Extracted . | . . Installed . | . . Triggered . | . . Machines | -11 -10 ---------- Run | Yrd Mat Machines Disabled . | . . Max in Single Turn . | . . Machines Repaired . | . . Machines Dismantled . | . . Machines Sabotaged . | . . Overloaded Fab Kills . | . . Hacking | -11 -10 --------- Run | Yrd Mat Machines Accessed . | . . Terminals . | . . Fabricators . | . . Repair Stations . | . . Recycling Units . | . . Scanalyzers . | . . Garrison Access . | . . Total Hacks . | . . Successful . | . . Failed . | . . Catastrophic . | . . Database Lockouts . | . . Manual . | . . Terminals . | . . Fabricators . | . . Repair Stations . | . . Recycling Units . | . . Scanalyzers . | . . Garrison Access . | . . Terminal Hacks . | . . Fabricator Hacks . | . . Repair Station Hacks . | . . Recycling Unit Hacks . | . . Scanalyzer . | . . Garrison Access Hacks . | . . Unauthorized Hacks . | . . Terminals . | . . Fabricators . | . . Repair Stations . | . . Recycling Units . | . . Scanalyzers . | . . Garrison Access . | . . Data Cores Recovered . | . . Used . | . . Hacking Detections . | . . Full Trace Events . | . . Feedback Events . | . . Feedback Blocked . | . . Robot Schematics Acquired . | . . Robots Built . | . . Authchips . | . . Time . | . . Total Robot Build Rating . | . . Part Schematics Acquired . | . . Parts Built . | . . Authchips . | . . Time . | . . Total Part Build Rating . | . . Parts Repaired . | . . Time . | . . Parts Recycled . | . . Recycled Matter . | . . Retrieved Matter . | . . Retrieved Components . | . . Parts Scanalyzed . | . . Part Schematics Acquired . | . . Parts Damaged . | . . Bothacking | -11 -10 ------------ Run | Yrd Mat Used RIF Installer . | . . Robots Hacked . | . . Non-combat . | . . Combat . | . . Robot Hacks Applied . | . . Relay Couplers Released . | . . Fabnet Peak Effective % . | . . Robots Rewired . | . . Allies Hacked . | . . Hacks Repelled . | . . Allies | -11 -10 -------- Run | Yrd Mat Total Allies . | . . Largest Group . | . . Highest-Rated Group . | . . Highest-Rated Ally . | . . Total Orders . | . . Ally Attacks . | . . Total Damage . | . . Kills . | . . Allies Corrupted . | . . Allies Melted . | . . Intel | -11 -10 ------- Run | Yrd Mat Robot Analysis Total . | . . Derelict Logs Recovered . | . . Drone Launches . | . . Drone Recoveries . | . . Exploration | -11 -10 ------------- Run | Yrd Mat Turns Passed 290 | 215 75 Spaces Moved 189 | 154 35 Core 31 | 21 10 Treads . | . . Legs 155 | 133 22 Wheels 3 | . 3 Hover . | . . Flight . | . . Fastest Speed 50 | 50 50 Average Speed 109 | 110 103 Slowest Speed 120 | 120 120 Overloaded Moves . | . . Propulsion Burnouts . | . . Robots Hopped . | . . Cave-ins Triggered . | . . Exploration Rate (%) 10 | 10 10 Regions Visited 1 Branch Regions . Pre-discovered Areas . | . . Known Exits Taken . | . . Unknown Exits Taken 1 | 1 . Scrap Searched . | . . Spaces Dug . | . . Terrain Destroyed 4 | . 4 Melee . | . . Projectile . | . . AOE 4 | . 4 Terrain Rammed . | . . Walls Destroyed . | . . Machines Disabled . | . . Actions | -11 -10 --------- Run | Yrd Mat Total 247 | 185 62 Wait 22 | 8 14 Move 188 | 153 35 Hop . | . . Pick Up 5 | 5 . Fast Attach 11 | 11 . Attach 3 | . 3 Detach . | . . Swap . | . . Drop . | . . Fire 18 | 8 10 Melee . | . . Ram . | . . Kick . | . . Crush . | . . Escape Stasis . | . . Rewire . | . . Trap . | . . Miscellaneous . | . . Route ------- -11/Scrapyard -10/Materials History --------- Turn | Location | Event 2 | -11/Scrapyard | Met Revision 17 79 | -11/Scrapyard | Released all parts (5) 102 | -11/Scrapyard | Discovered new exit (range 8) 216 | -11/Scrapyard | Entered Materials 281 | -10/Materials | Core integrity fell below 50% 289 | -10/Materials | Core integrity fell below 20% 291 | -10/Materials | Destroyed by G-47 Trooper with Particle Gun Last Messages --------------- 00167_ T-07 Excavator is excavating. 00169_ K-01 Serf collects debris. 00170_ T-07 Excavator is excavating. 00177_ K-01 Serf collects debris. LOCATION=UNKNOWN GOAL=ESCAPE 00216_ ALERT: A rogue bot has emerged from the scrapyard. Terminate on contact. 00256_ Chain reaction triggered in Lgt. Nuclear Core. 00261_ Lgt. Ion Engine destroyed. 00269_ Assault Rifle destroyed. 00269_ Aluminum Leg destroyed. 00270_ G-47 Trooper destroyed. 00271_ K-01 Serf collects debris. 00278_ EM Pulse Gun destroyed. 00281_ K-01 Serf collects debris. 00282_ EM Pulse Gun destroyed. 00286_ Aluminum Leg destroyed. 00290_ M-13 Machinist repairs G-47 Trooper. Map ----- +----------------------------------------------------+ | ????????????????????????????????????????????????? | | ????????#####???????????????????????????????????? | | ????????# #???????????????????????????????????? | | ????????# #???????????????????????????????????? | | ????????# #???????????????????????????????????? | | ????????# #???????????????????????????????????? | | ????????# #???????????????????????????????????? | | ????????# #???????????????????????????????????? | | ???????## ##??????????????????????????????????? | | ???????# ###+#################### ??????????? | | ?####### w ?????????? | | + ??????????? | | # w ####?????????????????? | | # ## # ;% #????????????????????? | | ] ?######## ##;g g#????????????????????? | | ######????????#]]==!!##; #????????????????????? | | ??????????????#]]==!!###gg #????????????????????? | | ??????????????########?# g#????????????????????? | | ???????????????????????# #????????????????????? | | ??????????????????????## ##???????????????????? | | ??????????????????????# #???????????????????? | | ??????????????????????# #???????????????????? | | ??????????????????????# #???????????????????? | | ??????????????????????# m #???????????????????? | | ??????????????????????# g #???????????????????? | | ??????????????????????## @ ##???????????????????? | | ???????????????????????# #????????????????????? | | ???????????????????????# g #????????????????????? | | ???????????????????????# #????????????????????? | | ???????????????????????# #????????????????????? | | ???????????????????????# #????????????????????? | | ???????????????????????# #????????????????????? | | ???????????????????????#k #????????????????????? | | ???????????????????????# #????????????????????? | | ???????????????????????# #????????????????????? | | ??????????????????????? ????????????????????? | | ???????????????????????#####????????????????????? | | ????????????????????????????????????????????????? | | ????????????????????????????????????????????????? | | ????????????????????????????????????????????????? | | ????????????????????????????????????????????????? | | ????????????????????????????????????????????????? | | ????????????????????????????????????????????????? | | ????????????????????????????????????????????????? | | ????????????????????????????????????????????????? | | ????????????????????????????????????????????????? | | ????????????????????????????????????????????????? | | ????????????????????????????????????????????????? | | ????????????????????????????????????????????????? | | ????????????????????????????????????????????????? | +----------------------------------------------------+ Best States ------------- Heat Dissipation 35 Energy Generation 10 Energy Capacity 125 Matter Stores 271 Matter Capacity 300 Sight Range 16 Terrain Scan Density 10 Evasion (%) 55 Item Schematics ----------------- None Robot Schematics ------------------ None Fabricated ------------ Nothing Alien Tech Used ----------------- None Achievements -------------- None Challenges ------------ None Game ------ Seed SmartbombDerelictLoader Manual? 0 Play Time 00:20:06 Cumulative 1.3 hours Start 2024.04.11 @ 03:51:44 End 2024.04.11 @ 08:14:11 Sessions 2 Manual Loads 0 Difficulty Rogue Special Mode None Game No. 2 Rogue 2 Adventurer 0 Explorer 0 Win Type - Total 0 Types 0/0/0/0/0/0/0/0/0 Lore% 0 Gallery% 1 Achievement% 1 Wizard Run 0 Options --------- Layout 2 ASCII 1 Keyboard 1 Movement Vi Keybinds 0 Fullscreen 2 Font 40/SmallcapsGlow Map View 50x44 Zoom Use 25% Tactical HUD 1 Map Filters NONE Filters NONE Steam 0 RUN: e61dcebd-ffce-4c96-aec2-92f2b0235fe6